bitfinex-derivatives/quotes_ETHF0:USTF0_20251001
["timestamp","ask_amount","ask_price","bid_price","bid_amount"]
[1759303274771,0.4459,4137.2,4137.1,0.3233]
[1759303274975,0.4459,4137.0,4136.9,0.5384]
[1759303275172,0.4459,4137.0,4136.9,0.7479]
[1759303275377,0.4459,4137.4,4137.3,0.43495]
[1759303275586,0.224,4137.4,4137.3,2.19211907]
[1759303276286,0.224,4137.4,4137.3,1.18285]
[1759303276485,0.224,4137.4,4137.3,0.7479]
[1759303277082,0.00224483,4137.5,4137.4,0.65003]
[1759303277285,0.00224483,4137.5,4137.4,9.39063]
[1759303278388,3.2078,4138.6,4138.4,0.7479]
[1759303278389,0.224,4138.5,4138.4,0.7479]
[1759303278781,0.7686,4138.5,4138.4,0.7479]
[1759303279392,0.77166975,4138.5,4138.4,0.7479]
[1759303279883,0.77166975,4138.5,4138.4,1.75716907]
[1759303280083,0.44896975,4138.5,4138.4,1.75716907]
[1759303280392,0.00306975,4138.5,4138.4,1.75716907]
[1759303280883,0.00306975,4138.5,4138.4,4.96496907]
[1759303281093,3.2078,4139.3,4139.2,0.7336]
[1759303281094,3.9651,4139.3,4139.2,0.7336]
[1759303281287,3.9651,4139.3,4139.2,1.16835]
[1759303281683,0.43475,4139.2,4138.9,0.3132]
[1759303281983,0.7573,4138.7,4138.6,0.5249]
[1759303282182,0.7573,4138.7,4138.6,0.2117]
[1759303282489,0.7573,4138.7,4138.6,0.00237365]
[1759303285984,0.7573,4138.7,4138.6,0.21407365]
[1759303287493,0.7573,4138.7,4138.6,0.00237365]
[1759303288088,1.1921,4138.7,4138.6,0.00237365]
[1759303290395,0.4447,4138.7,4138.6,0.76717365]
[1759303290593,1.22116,4139.1,4139.0,0.9026]
[1759303290890,1.22116,4139.1,4139.0,0.2178]
[1759303291383,1.22116,4139.1,4139.0,0.7648]
[1759303292697,0.00293978,4139.2,4139.1,1.19956]
[1759303292898,0.00293978,4139.2,4139.1,2.20882907]
[1759303293793,0.23293978,4139.2,4139.1,1.77406907]
[1759303294097,0.00293978,4139.2,4139.1,0.7648]
[1759303294396,0.00293978,4139.2,4139.1,6.77406907]
[1759303295194,4.42882,4140.4,4140.3,0.5464]
[1759303295899,4.42882,4140.4,4140.3,0.7648]
[1759303296091,4.09032672,4140.4,4140.3,0.7648]
[1759303296601,4.43182672,4140.4,4140.3,0.7648]
[1759303297097,4.43182672,4140.4,4140.3,0.2178]
[1759303297900,1.22105,4140.1,4140.0,0.2178]
[1759303298400,1.22105,4140.1,4140.0,0.5464]
[1759303299798,0.7864,4140.1,4140.0,0.7648]
[1759303301201,0.7864,4140.1,4140.0,0.9026]
[1759303301498,0.4449,4140.1,4140.0,0.9026]
[1759303301801,3.21080672,4140.4,4140.3,0.7648]
[1759303302101,3.44080672,4140.4,4140.3,0.7648]
[1759303302399,3.99720672,4140.4,4140.3,0.7648]
[1759303302595,3.44080672,4140.4,4140.3,2.20869907]
[1759303302801,1.22402672,4140.4,4140.3,0.7648]
[1759303303800,1.22105,4140.1,4140.0,0.2178]
[1759303303995,0.7864,4140.1,4140.0,1.00866]
[1759303304197,1.22105,4140.1,4140.0,0.9026]
[1759303304399,0.7864,4140.1,4140.0,1.33726]
[1759303304795,1.22105,4140.1,4140.0,0.9026]
[1759303305403,0.7864,4140.1,4140.0,1.33726]
[1759303305603,1.22105,4140.1,4140.0,0.9026]
[1759303306304,1.22105,4140.1,4140.0,0.5464]
[1759303307004,0.43468,4139.9,4139.7,1.20000531]
[1759303307201,1.22108,4139.9,4139.8,0.5464]
[1759303307507,0.7864,4139.9,4139.8,1.19948]
[1759303308004,1.22107,4139.9,4139.8,0.7648]
[1759303308504,1.22107,4139.9,4139.8,1.19948]
[1759303309200,1.22107,4139.9,4139.8,0.7648]
[1759303310693,0.43469,4139.8,4139.6,3.2078]
[1759303310910,0.23300672,4140.4,4140.3,0.7648]
[1759303311406,0.78940672,4140.4,4140.3,0.7648]
[1759303311803,0.78940672,4140.4,4140.3,0.3286]
[1759303312009,0.87955,4140.1,4140.0,0.2178]
[1759303312505,1.22105,4140.1,4140.0,0.5464]
[1759303312706,0.00300672,4140.4,4139.7,0.5464]
[1759303312707,0.4449,4139.8,4139.7,0.5464]
[1759303312902,0.7864,4139.8,4139.7,0.5464]
[1759303313104,0.75729,4139.7,4139.6,3.2078]
[1759303313299,1.20619,4139.7,4139.6,3.2078]
[1759303313704,0.43471,4139.5,4139.4,0.2215]
[1759303314006,0.88361,4139.5,4139.4,0.5521]
[1759303314402,0.4489,4139.3,4139.2,1.09290531]
[1759303314609,0.7715,4139.3,4139.2,1.42350531]
[1759303315300,0.7715,4139.3,4139.2,0.2215]
[1759303315608,0.7715,4139.3,4139.2,0.5521]
[1759303316104,0.4489,4139.3,4139.2,1.63160531]
[1759303316801,0.7715,4139.3,4139.2,1.63160531]
[1759303320006,0.7715,4139.3,4139.2,0.7602]
[1759303320201,0.7715,4139.3,4139.2,1.40939838]
[1759303320506,1.20623,4139.3,4139.2,0.64919838]
[1759303320713,0.7715,4138.9,4138.7,0.64919838]
[1759303320909,0.7715,4138.8,4138.7,1.84419838]
[1759303321106,4.4321,4139.5,4138.7,1.84419838]
[1759303321107,0.65936,4139.1,4139.0,0.5568]
[1759303321308,3.64252,4139.5,4139.4,0.3306]
[1759303321508,3.64252,4139.5,4139.4,0.7602]
[1759303321803,0.3226,4139.9,4139.5,0.4578]
[1759303322010,0.88357,4139.9,4139.8,1.63160531]
[1759303322312,1.20617,4139.9,4139.8,1.63160531]
[1759303322814,1.20617,4139.9,4139.8,0.7602]
[1759303323208,1.20617,4139.9,4139.8,0.2215]
[1759303323512,1.2062,4139.6,4139.5,1.32211]
[1759303323912,0.8836,4139.6,4139.5,1.32211]
[1759303324117,0.6593,4139.6,4139.5,1.32211]
[1759303324318,1.2062,4139.6,4139.5,0.8874]
[1759303324817,0.7715,4139.6,4139.5,1.32211]
[1759303325311,1.2062,4139.6,4139.5,0.8874]
[1759303325912,0.4489,4139.4,4139.2,0.64919838]
[1759303326106,0.7715,4139.3,4139.2,1.20129838]
[1759303326302,0.7715,4139.3,4139.2,0.5521]
[1759303326515,0.4489,4139.3,4139.2,0.7602]
[1759303326908,1.20624,4139.3,4139.2,0.7602]
[1759303327315,1.20624,4139.3,4139.2,0.5521]
[1759303328017,0.7715,4139.2,4139.1,1.20129838]
[1759303328215,0.3226,4139.5,4139.1,1.40939838]
[1759303328419,3.8671,4139.6,4139.5,0.8874]
[1759303328718,4.414,4139.6,4139.5,0.8874]
[1759303329316,4.414,4139.6,4139.5,0.7602]
[1759303329716,1.20624,4139.3,4139.2,0.5521]
[1759303329918,1.20624,4139.3,4139.2,0.7602]
[1759303330518,0.88364,4139.3,4139.2,0.7602]
[1759303333523,1.20624,4139.3,4139.2,0.7602]
[1759303334318,0.4347,4139.6,4139.5,1.32211]
[1759303334622,0.65929,4139.7,4139.6,0.7602]
[1759303334821,0.65929,4139.7,4139.6,1.63160531]
[1759303335018,0.3226,4140.0,4139.8,0.43468]
[1759303335220,3.2078,4140.1,4140.0,0.8874]
[1759303335423,0.43762672,4140.4,4140.1,0.43465]
[1759303335620,0.66222672,4140.4,4140.3,1.63160531]
[1759303335922,0.00300672,4140.4,4140.3,2.06623531]
[1759303337914,0.22760672,4140.4,4140.3,1.63160531]
[1759303338121,0.77450672,4140.4,4140.3,0.2215]
[1759303338521,0.00300672,4140.4,4140.3,1.63160531]
[1759303338720,0.00300672,4140.4,4140.3,2.28209117]
[1759303339321,0.00300672,4140.4,4140.3,1.63160531]
[1759303339322,0.22760672,4140.4,4140.3,1.63160531]
[1759303340524,0.45190672,4140.4,4140.3,1.63160531]
[1759303340822,0.00300672,4140.4,4140.3,1.63160531]
[1759303341025,0.22760672,4140.4,4140.3,1.63160531]
[1759303341827,0.77450672,4140.4,4140.3,0.7602]
[1759303342022,0.88353,4140.3,4140.1,0.65048586]
[1759303342223,0.88355,4140.2,4140.0,0.65048586]
[1759303342525,0.88355,4140.2,4140.0,1.41068586]
[1759303342526,0.7715,4140.1,4140.0,1.41068586]
[1759303344326,0.7715,4140.1,4140.0,1.41034351]
[1759303344626,1.20615,4140.1,4140.0,1.41034351]
[1759303345528,0.4489,4140.1,4140.0,2.84260882]
[1759303345729,0.21550672,4140.4,4140.3,0.7701]
[1759303345928,0.21550672,4140.4,4140.3,1.64150531]
[1759303346625,1.17772672,4140.4,4140.3,1.64150531]
[1759303346824,0.43465,4140.1,4140.0,0.77634351]
[1759303347025,1.17475,4140.1,4140.0,0.5615]
[1759303347527,0.85678,4139.8,4139.7,1.21164351]
[1759303347717,1.17478,4139.8,4139.7,1.42024351]
[1759303347919,1.17478,4139.8,4139.7,0.7701]
[1759303348432,1.17478,4139.8,4139.7,0.2188]
[1759303349335,1.17481,4139.5,4139.4,1.07754351]
[1759303349634,1.17481,4139.5,4139.4,1.42024351]
[1759303350234,1.17481,4139.5,4139.4,0.7701]
[1759303351829,1.17481,4139.5,4139.1,3.85794351]
[1759303351830,0.85685,4139.2,4139.1,3.85794351]
[1759303352031,1.17485,4139.2,4139.1,3.4266]
[1759303352335,1.17485,4139.2,4139.1,3.2078]
[1759303352633,1.17485,4139.2,4139.1,3.4266]
[1759303352835,1.17485,4139.2,4139.1,3.7693]
[1759303353031,1.17485,4139.2,4139.1,3.4266]
[1759303353332,1.17485,4139.2,4138.8,0.5615]
[1759303353333,1.17488,4138.9,4138.8,0.5615]
[1759303353532,1.17488,4138.9,4138.6,0.43718365]
[1759303353533,1.1749,4138.7,4138.6,0.56387365]
[1759303354035,1.1749,4138.7,4138.6,0.77247365]
[1759303355235,0.7401,4140.1,4140.0,0.7701]
[1759303355434,0.75563672,4140.4,4140.0,2.20235531]
[1759303355738,1.17772672,4140.4,4140.3,1.43290531]
[1759303356034,1.17772672,4140.4,4140.3,1.64150531]
[1759303356233,0.85972672,4140.4,4140.3,1.64150531]
[1759303356926,0.42510672,4140.4,4140.3,0.7701]
[1759303357134,0.00300672,4140.4,4140.3,1.64150531]
[1759303359836,0.21550672,4140.4,4140.3,0.7701]
[1759303360036,0.74310672,4140.4,4140.3,0.7701]
[1759303360441,0.74310672,4140.4,4140.3,0.2188]
[1759303361335,0.4221,4140.1,4140.0,0.5536]
[1759303361536,0.4221,4140.1,4140.0,0.8963]
[1759303361737,0.85675,4140.1,4140.0,0.8963]
[1759303361942,1.17475,4140.1,4140.0,0.7701]
[1759303362640,1.17478,4139.8,4139.7,0.5615]
[1759303362839,0.4221,4139.8,4139.7,0.7701]
[1759303363140,0.7401,4139.8,4139.7,0.7701]
[1759303366655,0.7401,4139.8,4139.7,1.20479]
[1759303366852,3.85494,4140.2,4140.1,0.7701]
[1759303367143,4.38254,4140.2,4140.1,0.7701]
[1759303368343,4.06454,4140.2,4140.1,0.7701]
[1759303368547,3.2078,4140.2,4140.1,2.21332991]
[1759303368749,3.2078,4140.2,4140.1,1.20475]
[1759303369150,3.64244,4140.2,4140.1,1.20475]
[1759303369644,3.2078,4140.2,4140.1,1.20475]
[1759303371247,3.4203,4140.2,4140.1,0.7701]
[1759303371448,3.4203,4140.2,4140.1,1.20475]
[1759303373148,0.2125,4140.2,4140.1,1.20475]
[1759303373942,0.22110672,4140.4,4140.3,1.22723]
[1759303375547,0.00300672,4140.4,4140.3,2.23580991]
[1759303377152,0.00300672,4140.4,4140.3,2.88574154]
[1759303377351,0.00300672,4140.4,4140.3,2.23580991]
[1759303377651,0.00300672,4140.4,4140.3,2.88574154]
[1759303378050,0.00300672,4140.4,4140.3,2.23580991]
[1759303378345,0.00300672,4140.4,4140.3,2.43243086]
[1759303381456,0.00300672,4140.4,4140.3,2.23580991]
[1759303381953,0.00300672,4140.4,4140.3,2.43108011]
[1759303383353,0.00300672,4140.4,4140.3,3.29781683]
[1759303384249,0.00300672,4140.4,4140.3,2.43108011]
[1759303386553,0.00300672,4140.4,4140.3,1.22723]
[1759303386554,0.22110672,4140.4,4140.3,1.22723]
[1759303386748,0.00300672,4140.4,4140.3,1.22723]
[1759303386950,0.75870672,4140.4,4140.3,0.7926]
[1759303387246,0.75870672,4140.4,4140.3,2.0944312]
[1759303387750,0.43670672,4140.4,4140.3,1.22723]
[1759303388152,0.22110672,4140.4,4140.3,1.22723]
[1759303388751,0.00300672,4140.4,4140.3,1.22723]
[1759303389860,0.00300672,4140.4,4140.3,2.52695611]
[1759303391648,0.22110672,4140.4,4140.3,2.52695611]
[1759303392054,0.00300672,4140.4,4140.3,2.52695611]
[1759303393851,0.00300672,4140.4,4140.3,1.22723]
[1759303394051,0.00300672,4140.4,4140.3,2.5277232]
[1759303395661,0.22110672,4140.4,4140.3,2.5277232]
[1759303396159,0.00300672,4140.4,4140.3,2.5277232]
[1759303396554,0.00300672,4140.4,4140.3,1.22723]
[1759303402459,0.54770672,4140.4,4140.3,0.7926]
[1759303402661,0.75690672,4140.4,4140.2,0.43464]
[1759303402865,0.7539,4140.3,4140.2,0.98364]
[1759303403170,1.18853,4140.3,4140.2,0.549]
[1759303403371,0.7539,4140.3,4140.2,0.98364]
[1759303403761,1.18853,4140.3,4140.2,0.549]
[1759303405971,0.7539,4140.3,4140.2,2.28639846]
[1759303406366,1.18853,4140.3,4140.2,0.549]
[1759303407670,0.5478,4140.2,4140.1,4.72725846]
[1759303407863,0.7691,4140.2,4140.1,5.50480846]
[1759303408369,0.7691,4140.2,4140.1,5.73210846]
[1759303408572,0.21960672,4140.4,4140.3,1.22153]
[1759303409070,0.00300672,4140.4,4140.3,1.22153]
[1759303411273,0.21960672,4140.4,4140.3,0.7869]
[1759303411475,0.55080672,4140.4,4140.3,0.7869]
[1759303411666,0.77210672,4140.4,4140.3,0.7869]
[1759303411865,0.77210672,4140.4,4140.3,1.22153]
[1759303412571,1.20672672,4140.4,4140.3,0.7869]
[1759303414374,1.20672672,4140.4,4140.3,1.65558721]
[1759303414576,0.77210672,4140.4,4140.3,1.22153]
[1759303415076,1.20672672,4140.4,4140.3,1.22153]
[1759303415575,0.3312,4140.3,4140.1,4.85378176]
[1759303415773,1.20374,4140.2,4140.1,5.07048176]
[1759303415966,1.20374,4140.2,4140.1,0.5596]
[1759303416669,0.7691,4140.2,4140.1,0.99425]
[1759303417175,0.7691,4140.2,4140.1,1.22155]
[1759303417772,1.20374,4140.2,4140.1,0.7869]
[1759303418278,1.20374,4140.2,4140.1,1.65541698]
[1759303418870,1.20374,4140.2,4140.1,0.2167]
[1759303419070,1.20374,4140.2,4139.8,0.8685296]
[1759303419071,0.43467,4139.9,4139.8,0.8685296]
[1759303419277,1.20377,4139.9,4139.8,1.2114296]
[1759303419472,1.20377,4139.9,4139.8,1.4281296]
[1759303419775,0.00300672,4140.4,4140.1,0.7869]
[1759303419776,0.5478,4140.2,4140.1,0.7869]
[1759303419976,0.5478,4140.2,4140.1,1.43816664]
[1759303420176,0.98244,4140.2,4140.1,1.43816664]
[1759303420378,1.20374,4140.2,4140.1,1.43816664]
[1759303421282,0.65422672,4140.4,4140.3,0.7869]
[1759303421575,0.98542672,4140.4,4140.3,0.7869]
[1759303421776,1.20672672,4140.4,4140.3,0.7869]
[1759303423178,0.77210672,4140.4,4140.3,0.7869]
[1759303423377,1.20672672,4140.4,4140.3,0.7869]
[1759303428778,0.43463,4140.3,4140.2,0.65111816]
[1759303428978,1.20373,4140.3,4140.2,0.86781816]
[1759303429178,1.20373,4140.3,4140.2,1.21071816]
[1759303436295,0.43465,4140.1,4140.0,0.86835552]
[1759303436589,1.22905,4140.1,4140.0,1.43145552]
[1759303436794,1.22905,4140.1,4140.0,1.64595552]
[1759303441697,1.35976,4140.0,4139.9,0.86835552]
[1759303442098,1.35976,4140.0,4139.9,1.20645552]
[1759303442299,1.35976,4140.0,4139.9,1.43145552]
[1759303446499,3.2078,4140.1,4139.9,1.64595552]
[1759303446695,0.43464,4140.2,4140.0,1.87369185]
[1759303446999,0.43464,4140.2,4140.1,1.64671774]
[1759303447298,0.43762672,4140.4,4140.3,0.4395]
[1759303447492,0.65782672,4140.4,4140.3,1.42947608]
[1759303449797,0.00300672,4140.4,4140.3,2.08356185]
[1759303450005,0.00300672,4140.4,4140.3,3.38664361]
[1759303450395,0.00300672,4140.4,4140.3,2.08356185]
[1759303452301,0.00300672,4140.4,4140.3,3.38664361]
[1759303453205,0.00300672,4140.4,4140.3,2.08356185]
[1759303453401,3.2078,4140.6,4140.5,0.56281]
[1759303453606,3.2078,4140.6,4140.5,1.34041]
[1759303454107,0.43453,4141.3,4141.1,0.7776]
[1759303454402,0.2202,4141.4,4141.3,0.3381]
[1759303454608,3.2078,4141.7,4141.5,0.9058]
[1759303454609,0.2202,4141.6,4141.5,0.9058]
[1759303454808,0.22297036,4141.6,4141.5,0.90760877]
[1759303456709,0.56877036,4141.6,4141.5,0.90760877]
[1759303458715,0.56877036,4141.6,4141.5,1.34211877]
[1759303459010,0.22297036,4141.6,4141.5,1.34211877]
[1759303459210,0.56877036,4141.6,4141.5,1.34211877]
[1759303460009,0.22297036,4141.6,4141.5,1.34211877]
[1759303460311,0.65716036,4141.6,4141.5,1.34211877]
[1759303460503,0.65716036,4141.6,4141.5,0.90760877]
[1759303460711,1.20966036,4141.6,4141.5,0.77940877]
[1759303461312,2.08099221,4141.6,4141.5,0.56490877]
[1759303461513,2.08099221,4141.6,4141.5,0.00180877]
[1759303462212,2.08099221,4141.6,4141.5,0.34000877]
[1759303462513,2.08099221,4141.6,4141.5,0.55590877]
[1759303463213,2.08099221,4141.6,4141.5,0.21770877]
[1759303463811,2.08099221,4141.6,4141.5,0.55890877]
[1759303464116,2.08099221,4141.6,4141.5,0.00180877]
[1759303465315,1.20966036,4141.6,4141.5,0.57050877]
[1759303465519,0.86646036,4141.6,4141.5,0.93000877]
[1759303465821,1.18916036,4141.6,4141.5,0.93000877]
[1759303466119,1.18916036,4141.6,4141.5,0.79530877]
[1759303466618,1.18916036,4141.6,4141.5,0.00180877]
[1759303470618,0.65862,4140.4,4140.3,1.21813576]
[1759303470923,0.3227,4140.8,4140.4,0.3412]
[1759303471114,0.3227,4140.8,4140.2,1.30597185]
[1759303471115,4.40827,4140.9,4140.8,0.5687]
[1759303471524,4.40827,4140.9,4140.8,0.5717993]
[1759303476032,4.40827,4140.9,4140.8,0.0030993]
[1759303477431,4.40827,4140.9,4140.8,0.7965993]
[1759303483141,4.40827,4140.9,4140.8,0.2305993]
[1759303483440,4.40827,4140.9,4140.8,0.0030993]
[1759303485233,9.40827,4140.9,4140.8,0.0030993]
[1759303485435,1.33106,4140.0,4139.9,1.21813576]
[1759303485637,1.20056,4140.0,4139.9,0.7935]
[1759303485839,0.224,4140.0,4139.9,1.22817]
[1759303486032,0.65864,4140.2,4140.1,0.7935]
[1759303486542,0.65864,4140.2,4140.1,0.79649194]
[1759303488243,1.20054,4140.2,4140.1,0.79649194]
[1759303488443,1.20054,4140.2,4140.1,0.00299194]
[1759303489940,2.07187185,4140.2,4140.1,0.00299194]
[1759303490245,1.20054,4140.2,4140.1,0.79649194]
[1759303490742,1.20054,4140.2,4140.1,0.57169194]
[1759303491346,0.87784,4140.2,4140.1,0.79649194]
[1759303491542,0.65864,4140.2,4140.1,1.80496325]
[1759303492251,0.98134,4140.2,4140.1,0.79649194]
[1759303492941,0.65864,4140.2,4140.1,0.79649194]
[1759303493543,0.43464,4140.2,4140.1,1.23114194]
[1759303494649,0.43464,4140.2,4140.1,0.79649194]
[1759303496654,0.64313,4140.3,4140.2,0.7685]
[1759303497349,3.2078,4140.7,4140.6,0.7685]
[1759303497350,3.64239,4140.7,4140.6,0.7685]
[1759303497551,3.85089,4140.7,4140.6,0.7685]
[1759303498053,4.17129,4140.7,4140.6,0.7685]
[1759303498953,4.38779,4140.7,4140.6,0.7685]
[1759303499855,1.17999,4140.7,4140.6,0.7685]
[1759303500357,1.17999,4140.7,4140.6,1.41916886]
[1759303504965,0.7454,4140.7,4140.6,1.85376886]
[1759303505170,1.17999,4140.7,4140.6,1.85376886]
[1759303505668,1.17999,4140.7,4140.6,1.41916886]
[1759303506960,0.85959,4140.7,4140.6,1.85376886]
[1759303507164,1.17999,4140.7,4140.6,1.85376886]
[1759303507765,1.17999,4140.7,4140.6,1.41916886]
[1759303508771,1.17999,4140.7,4140.6,1.85376886]
[1759303509069,1.17999,4140.7,4140.6,1.41916886]
[1759303509471,1.17999,4140.7,4140.6,0.86246886]
[1759303509676,1.17999,4140.7,4140.6,1.41916886]
[1759303510159,0.4346,4140.6,4140.5,0.65066886]
[1759303510360,1.18001,4140.5,4140.4,0.99006886]
[1759303510574,1.31331,4140.5,4140.4,0.3394]
[1759303510966,1.31331,4140.5,4140.4,0.5512]
[1759303511172,1.18001,4140.5,4140.4,0.5512]
[1759303511369,0.2085,4140.9,4140.5,0.1347]
[1759303511572,3.2078,4141.1,4141.0,0.99836]
[1759303512070,3.2078,4141.1,4141.0,1.33776]
[1759303512774,3.64235,4141.1,4141.0,1.33776]
[1759303513871,3.4163,4141.1,4141.0,1.33776]
[1759303514073,3.85085,4141.1,4141.0,1.33776]
[1759303514469,3.4163,4141.1,4141.0,1.33776]
[1759303514876,3.85085,4141.1,4141.0,1.33776]
[1759303515773,4.17125,4141.1,4141.0,0.9032]
[1759303516174,4.38775,4141.1,4141.0,0.9032]
[1759303516377,4.38775,4141.1,4141.0,0.7685]
[1759303516875,1.17995,4141.1,4141.0,0.5512]
[1759303517073,1.31326,4141.0,4140.9,0.65107612]
[1759303517372,0.7454,4140.9,4140.8,1.63685612]
[1759303517572,1.17997,4140.9,4140.8,0.98578]
[1759303517774,1.17997,4140.9,4140.8,0.5512]
[1759303517973,1.17997,4140.9,4140.8,1.20175974]
[1759303519478,0.7454,4140.9,4140.8,1.63633974]
[1759303519676,0.7454,4140.9,4140.8,1.63632746]
[1759303519879,0.7454,4140.9,4140.8,1.20308]
[1759303520077,0.2085,4140.9,4140.8,2.21155131]
[1759303520977,0.2085,4140.9,4140.8,1.20308]
[1759303523183,0.444,4141.5,4141.4,0.5441]
[1759303523382,0.87851,4141.5,4141.4,0.5441]
[1759303523784,1.21161,4141.5,4141.4,0.5441]
[1759303525984,0.86954,4141.2,4141.1,0.2186]
[1759303526287,0.86954,4141.2,4141.1,0.5391]
[1759303526288,1.20264,4141.2,4141.1,0.5391]
[1759303526585,1.20264,4141.2,4141.1,0.7611]
[1759303527274,1.20264,4141.2,4141.1,1.19565]
[1759303527585,1.20264,4141.2,4141.1,0.7611]
[1759303528188,1.20264,4141.2,4141.1,1.19565]
[1759303529988,1.20264,4141.2,4141.1,0.7611]
[1759303530775,1.20264,4141.2,4141.1,0.5391]
[1759303531788,1.20264,4141.2,4141.1,0.97365]
[1759303532288,3.2078,4141.5,4141.1,1.19565]
[1759303532476,1.73155994,4142.7,4142.5,1.0043]
[1759303532679,0.022,4142.9,4142.8,0.4406]
[1759303532989,0.2351,4142.9,4142.8,2.63767281]
[1759303533182,0.2351,4142.9,4142.8,2.41866644]
[1759303533382,0.23781607,4142.9,4142.8,2.41866644]
[1759303533789,0.23781607,4142.9,4142.8,1.76957131]
[1759303539382,0.02471607,4142.9,4142.8,1.76957131]
[1759303541593,0.45971607,4142.9,4142.8,0.3205]
[1759303541889,0.45971607,4142.9,4142.8,0.5391]
[1759303541890,1.22717607,4142.9,4142.8,0.5391]
[1759303542088,1.22717607,4142.9,4142.8,0.7611]
[1759303542701,0.79281607,4142.9,4142.8,0.7611]
[1759303542887,0.79281607,4142.9,4142.8,1.19547]
[1759303546494,0.45971607,4142.9,4142.8,1.19547]
[1759303546693,0.23781607,4142.9,4142.8,1.19547]
[1759303547489,0.02471607,4142.9,4142.8,1.19547]
[1759303550305,0.02471607,4142.9,4142.8,2.20394131]
[1759303551296,0.02471607,4142.9,4142.8,1.19547]
[1759303552196,0.02471607,4142.9,4142.8,2.06561396]
[1759303553697,0.23771607,4142.9,4142.8,2.06561396]
[1759303554101,0.78431607,4142.9,4142.8,1.19547]
[1759303554996,0.45671607,4142.9,4142.8,1.19547]
[1759303555303,0.02471607,4142.9,4142.8,2.06561396]
[1759303557806,0.78431607,4142.9,4142.8,1.19547]
[1759303560306,0.78431607,4142.9,4142.8,1.84386198]
[1759303561210,0.78431607,4142.9,4142.8,1.19547]
[1759303562306,0.78431607,4142.9,4142.8,2.49545105]
[1759303562307,1.21867607,4142.9,4142.8,2.49545105]
[1759303562706,0.78667607,4142.9,4142.8,2.49545105]
[1759303562906,0.23771607,4142.9,4142.8,2.49545105]
[1759303563307,0.23771607,4142.9,4142.8,3.36559501]
[1759303563508,0.02471607,4142.9,4142.8,3.36559501]
[1759303563904,0.67207607,4142.9,4142.8,2.93122501]
[1759303564202,0.23771607,4142.9,4142.8,3.36559501]
[1759303564407,0.23771607,4142.9,4142.8,3.36754021]
[1759303564608,0.23771607,4142.9,4142.8,2.06561396]
[1759303565715,0.02471607,4142.9,4142.8,2.06561396]
[1759303565913,0.02471607,4142.9,4142.8,3.36754803]
[1759303566106,0.02471607,4142.9,4142.8,2.06561396]
[1759303566916,0.02471607,4142.9,4142.8,1.19547]
[1759303573413,0.56531607,4142.9,4142.8,1.19547]
[1759303574618,0.02471607,4142.9,4142.8,2.06561396]
[1759303577110,0.02471607,4142.9,4142.8,1.19547]
[1759303580518,0.57651607,4142.9,4142.8,1.19547]
[1759303580819,0.23851607,4142.9,4142.8,1.19547]
[1759303583515,0.79531607,4142.9,4142.8,1.19547]
[1759303583719,0.79531607,4142.9,4142.8,2.49793609]
[1759303584215,1.22967607,4142.9,4142.8,2.49793609]
[1759303584421,1.22967607,4142.9,4142.8,2.06356609]
[1759303584719,1.22967607,4142.9,4142.8,0.5391]
[1759303584917,1.22967607,4142.9,4142.8,0.7488]
[1759303586113,1.21447,4142.8,4142.7,1.30246609]
[1759303586513,1.21447,4142.8,4142.7,0.5433]
[1759303586722,1.21447,4142.8,4142.7,1.84576609]
[1759303587823,2.08461396,4142.8,4142.7,1.30246609]
[1759303588116,1.0058,4142.5,4142.4,0.65146047]
[1759303588323,1.0058,4142.5,4142.4,1.19476047]
[1759303588324,4.5515,4142.5,4142.4,1.19476047]
[1759303589109,4.5515,4142.5,4142.4,0.5433]
[1759303589711,0.65771,4142.4,4142.3,0.65146047]
[1759303589923,1.21452,4142.3,4142.2,1.19476047]
[1759303590528,1.21452,4142.3,4142.2,0.5433]
[1759303591024,1.21452,4142.3,4142.2,1.40446047]
[1759303591219,1.21452,4142.3,4142.2,0.753]
[1759303599620,1.21452,4142.3,4142.2,0.5433]
[1759303599821,0.43444,4142.1,4142.0,0.65146047]
[1759303600021,1.21454,4142.1,4142.0,0.88106047]
[1759303600327,1.21454,4142.1,4142.0,1.09076047]
[1759303600628,1.21454,4142.1,4142.0,1.40446047]
[1759303601626,1.21454,4142.1,4142.0,1.53686047]
[1759303602929,0.87664,4142.1,4142.0,1.53686047]
[1759303604030,1.21454,4142.1,4142.0,1.53686047]
[1759303609135,0.87664,4142.1,4142.0,0.8854]
[1759303609927,1.21454,4142.1,4142.0,0.8854]
[1759303610835,0.3379,4142.4,4142.0,0.5717]
[1759303611043,0.99564,4142.2,4142.1,1.83763369]
[1759303611334,0.99564,4142.2,4142.1,2.27333765]
[1759303612232,0.65774,4142.2,4142.1,0.753]
[1759303612839,0.99564,4142.2,4142.1,0.753]
[1759303613136,0.65774,4142.2,4142.1,0.753]
[1759303613537,0.99854,4142.2,4142.1,0.753]
[1759303614436,0.99854,4142.2,4142.1,1.62151062]
[1759303616340,0.99854,4142.2,4142.1,0.753]
[1759303616643,0.43444,4142.2,4142.1,0.753]
[1759303616831,0.43442,4142.3,4142.2,0.7836]
[1759303617034,0.43442,4142.3,4142.2,1.65203711]
[1759303617234,0.65882,4142.3,4142.2,0.7836]
[1759303617444,0.99962,4142.3,4142.2,0.7836]
[1759303618230,0.99962,4142.3,4142.2,1.21803]
[1759303618435,0.99962,4142.3,4142.2,0.7836]
[1759303619040,0.99962,4142.3,4142.2,1.21803]
[1759303619234,0.99962,4142.3,4142.2,0.7836]
[1759303619433,1.22832,4142.3,4142.2,0.7836]
[1759303622139,0.43444,4142.1,4142.0,1.30246609]
[1759303622339,0.88756,4141.9,4141.8,0.8689781]
[1759303622643,1.22837,4141.8,4141.7,1.4282781]
[1759303622845,1.22837,4141.8,4141.7,1.65265891]
[1759303624141,1.22837,4141.8,4141.7,0.7836]
[1759303625046,0.88758,4141.7,4141.6,0.86905891]
[1759303625247,1.22838,4141.7,4141.6,0.34]
[1759303625436,1.22838,4141.7,4141.6,0.5593]
[1759303630350,0.43448,4141.8,4141.7,1.21808]
[1759303630646,0.43448,4141.8,4141.7,1.4338408]